bitfinex/quotes_ETHUSD_20251124
["timestamp","ask_amount","ask_price","bid_price","bid_amount"]
[1763970153663,0.2445,2842.5,2842.1,0.6892]
[1763970153865,0.0643,2842.4,2841.9,0.4978]
[1763970154044,0.3068,2842.4,2841.9,0.1410773]
[1763970154368,0.5298,2842.4,2842.1,0.001]
[1763970154552,0.32890591,2842.3,2842.1,0.001]
[1763970154755,0.2407,2842.2,2842.1,0.001]
[1763970155585,0.485,2842.2,2842.1,0.001]
[1763970155760,0.57129321,2842.2,2842.1,0.001]
[1763970156072,0.890504,2842.2,2842.1,0.001]
[1763970156271,1.53430916,2842.2,2842.1,0.001]
[1763970157358,7.57152579,2842.2,2842.1,0.001]
[1763970158453,3.19812579,2842.2,2842.1,0.001]
[1763970158659,9.22994579,2842.2,2842.1,0.001]
[1763970160615,13.22432279,2842.2,2842.1,0.001]
[1763970160751,12.57413155,2842.2,2842.1,0.001]
[1763970161182,12.71525613,2842.2,2842.1,0.001]
[1763970161574,11.38935613,2842.2,2842.1,0.001]
[1763970162456,11.99880213,2842.2,2842.1,0.001]
[1763970162786,11.64552913,2842.2,2842.1,0.001]
[1763970163166,8.55427313,2842.2,2842.1,0.001]
[1763970163359,11.28992055,2842.2,2842.1,0.001]
[1763970163702,11.83129155,2842.2,2842.1,0.001]
[1763970164449,12.16441107,2842.2,2842.1,0.001]
[1763970164891,11.55091207,2842.2,2842.1,0.001]
[1763970165556,11.05227907,2842.2,2842.1,0.001]
[1763970166568,14.91314855,2842.2,2842.1,0.001]
[1763970166890,9.69812579,2842.2,2842.1,0.001]
[1763970167100,1.99260984,2842.2,2842.1,0.6526]
[1763970167333,1.45878585,2842.2,2842.1,0.9394]
[1763970167528,1.45878585,2842.2,2842.1,0.001]
[1763970167529,1.70128585,2842.2,2842.1,0.001]
[1763970170598,1.45878585,2842.2,2842.1,0.001]
[1763970171009,1.70128585,2842.2,2842.1,0.001]
[1763970171817,8.62595332,2842.2,2842.1,0.001]
[1763970171998,10.47142514,2842.2,2842.1,0.001]
[1763970172835,15.44010704,2842.2,2842.1,0.001]
[1763970173322,16.80555864,2842.2,2842.1,0.001]
[1763970173522,15.85953814,2842.2,2842.1,0.001]
[1763970173830,15.85953814,2842.2,2842.0,0.001]
[1763970173831,29.44169672,2842.1,2842.0,0.001]
[1763970174014,39.21545029,2842.1,2842.0,0.001]
[1763970174214,38.61226229,2842.1,2842.0,0.001]
[1763970174414,36.03102629,2842.1,2842.0,0.001]
[1763970174724,34.29441929,2842.1,2842.0,0.001]
[1763970174940,41.50575229,2842.1,2842.0,0.001]
[1763970176054,41.98116229,2842.1,2842.0,0.001]
[1763970176832,1.31249664,2841.9,2841.8,0.001]
[1763970177033,13.66455789,2841.9,2841.8,0.001]
[1763970177257,13.86307324,2841.9,2841.8,0.001]
[1763970177424,14.00424115,2841.9,2841.8,0.001]
[1763970178028,27.07178515,2841.9,2841.8,0.001]
[1763970178348,25.66908419,2841.9,2841.8,0.001]
[1763970178573,24.41032937,2841.9,2841.8,0.001]
[1763970179052,27.45069237,2841.9,2841.8,0.001]
[1763970179424,26.85804919,2841.9,2841.8,0.001]
[1763970179624,16.28746227,2841.9,2841.8,0.001]
[1763970179830,4.27694255,2841.9,2841.8,0.001]
[1763970180163,2.37367415,2841.9,2841.8,0.001]
[1763970180369,1.08391465,2841.9,2841.8,0.001]
[1763970180535,1.08391465,2841.9,2841.8,0.4537]
[1763970180731,3.17408926,2841.9,2841.8,0.001]
[1763970180931,4.83644804,2841.9,2841.8,0.001]
[1763970181136,5.7629622,2841.9,2841.8,0.001]
[1763970181366,3.7908932,2841.9,2841.8,0.001]
[1763970181755,3.83487785,2841.9,2841.8,0.001]
[1763970182392,37.5961505,2841.9,2841.4,0.001]
[1763970182606,37.5961505,2841.9,2840.5,0.001]
[1763970182607,0.405504,2841.0,2840.5,0.001]
[1763970182767,0.405504,2841.0,2840.2,0.001]
[1763970182768,1.31249664,2840.5,2840.2,0.001]
[1763970182972,0.405504,2840.0,2838.5,0.001]
[1763970183266,30.46963662,2839.7,2838.5,0.4877]
[1763970183488,38.61806122,2839.7,2838.5,0.001]
[1763970183808,42.8463272,2839.7,2838.5,0.001]
[1763970184007,46.86644698,2839.7,2838.5,0.001]
[1763970184301,43.14574352,2839.7,2838.5,0.001]
[1763970184478,44.86879521,2839.7,2838.5,0.001]
[1763970184675,33.11433455,2839.7,2838.5,0.4867]
[1763970184884,32.26970255,2839.7,2838.5,0.4867]
[1763970185086,31.95486965,2839.7,2838.5,0.4867]
[1763970185301,34.53739177,2839.7,2838.5,0.001]
[1763970185500,45.06701177,2839.7,2838.5,0.001]
[1763970186132,46.00483829,2839.7,2838.5,0.001]
[1763970186295,31.95428103,2839.7,2838.6,0.4857]
[1763970186493,31.50770303,2839.7,2838.6,0.4857]
[1763970186802,31.15347103,2839.7,2838.6,0.4857]
[1763970187635,40.82625536,2839.7,2838.6,0.4857]
[1763970187773,35.63428462,2839.7,2838.6,0.4857]
[1763970187974,33.71702862,2839.7,2838.6,0.4857]
[1763970188626,35.92572062,2839.7,2838.6,0.4857]
[1763970188920,35.51246562,2839.7,2838.6,0.4857]
[1763970189418,35.01384458,2839.7,2838.6,0.4857]
[1763970189623,1.03640767,2839.7,2839.3,0.4968]
[1763970189769,0.93782652,2840.1,2839.1,0.1894]
[1763970189770,0.93782652,2840.4,2839.6,0.4542]
[1763970189970,0.4968,2840.1,2839.6,0.4978]
[1763970190301,0.32487569,2840.0,2839.6,0.4978]
[1763970190497,0.4968,2840.1,2839.6,0.4978]
[1763970190498,4.51168,2839.8,2839.6,0.4978]
[1763970190666,0.224,2839.9,2839.6,0.4978]
[1763970190871,4.125919,2839.9,2839.8,0.4532]
[1763970191215,4.531423,2839.9,2839.8,0.4532]
[1763970191510,2.943919,2839.9,2839.8,0.95]
[1763970191709,2.352,2839.9,2839.8,0.95]
[1763970191915,2.757504,2839.9,2839.8,0.95]
[1763970192208,4.07082464,2839.9,2839.8,0.95]
[1763970192511,4.47632864,2839.9,2839.8,0.95]
[1763970192971,3.87616564,2839.9,2839.8,0.95]
[1763970193368,0.629504,2839.9,2839.8,0.95]
[1763970195300,1.53649664,2839.9,2839.8,0.95]
[1763970195603,0.002,2840.2,2839.8,0.4532]
[1763970195801,0.002,2840.8,2840.1,4.709003]
[1763970196193,0.002,2840.8,2840.3,4.709003]
[1763970196396,0.002,2840.8,2840.1,4.709003]
[1763970196611,0.002,2840.8,2840.3,4.709003]
[1763970201931,0.002,2840.8,2840.5,4.709003]
[1763970202418,0.73116441,2841.9,2840.5,4.709003]
[1763970203031,0.405504,2841.9,2840.5,4.709003]
[1763970203197,0.0953,2842.0,2840.5,4.709003]
[1763970203401,0.32605045,2842.1,2840.7,4.801883]
[1763970203717,0.73155445,2842.1,2840.8,4.709003]
[1763970204123,0.405504,2842.1,2840.9,4.709003]
[1763970204428,0.32601364,2842.4,2840.9,4.709003]
[1763970204605,0.90699264,2842.1,2840.9,4.709003]
[1763970204803,0.405504,2842.4,2841.0,0.6090003]
[1763970205005,0.73155161,2842.4,2841.0,0.09288]
[1763970205199,5.78951,2842.4,2841.1,4.709003]
[1763970205433,5.800633,2842.4,2841.1,4.709003]
[1763970205730,0.002,2842.5,2841.1,4.709003]
[1763970205931,0.002,2842.5,2840.9,0.224]
[1763970205932,0.002,2842.5,2841.4,4.709003]
[1763970206629,0.002,2842.5,2841.6,4.709003]
[1763970207756,0.002,2842.5,2841.6,4.801883]
[1763970207907,0.002,2842.5,2841.8,4.709003]
[1763970208738,0.002,2842.5,2841.9,0.4522]
[1763970209123,0.002,2842.4,2841.9,0.4522]
[1763970209460,0.002,2842.4,2842.0,4.709003]
[1763970209771,0.002,2842.4,2842.2,4.709003]
[1763970211419,0.34731122,2843.8,2842.4,0.1049]
[1763970211620,0.14102805,2844.5,2843.7,0.1049]
[1763970211862,0.55198414,2844.4,2843.7,0.1049]
[1763970212060,0.20147665,2844.5,2843.8,0.1049]
[1763970212266,0.04394599,2844.4,2843.8,1.05732647]
[1763970212563,0.18409181,2844.8,2843.4,0.1049]
[1763970212746,0.18409181,2844.8,2843.6,5.72475047]
[1763970212926,0.18409181,2844.8,2843.7,4.667424]
[1763970213122,0.18409181,2844.8,2843.7,4.772324]
[1763970213323,0.18409181,2844.8,2843.8,0.1049]
[1763970213552,0.18409181,2844.8,2844.7,0.1049]
[1763970213726,4.45264001,2845.9,2844.7,0.1049]
[1763970213727,0.4522,2845.7,2844.7,0.2098]
[1763970215435,0.4522,2845.7,2844.8,4.667424]
[1763970215838,0.4522,2845.7,2844.9,4.667424]
[1763970216234,0.6461,2846.1,2845.6,0.1049]
[1763970216450,0.6461,2846.1,2845.0,0.1049]
[1763970216650,0.4919,2846.0,2845.0,0.1049]
[1763970217231,0.1939,2846.1,2844.1,0.405504]
[1763970217432,0.4919,2846.0,2844.7,0.1049]
[1763970217642,0.4919,2846.0,2844.8,4.667424]
[1763970218161,0.4919,2846.0,2844.9,0.1049]
[1763970219040,0.1939,2846.1,2845.0,4.667424]
[1763970219362,0.1939,2846.1,2845.1,4.667424]
[1763970219557,0.1939,2846.1,2845.2,4.667424]
[1763970219759,0.6858,2846.1,2845.2,4.667424]
[1763970220159,0.53581512,2846.4,2845.2,0.5968]
[1763970220359,0.53581512,2846.4,2845.3,0.1049]
[1763970220531,6.448799,2846.6,2845.4,0.1049]
[1763970220730,0.1839424,2847.7,2846.6,0.1049]
[1763970221043,1.24285916,2847.8,2845.4,0.615304]
[1763970221044,1.483579,2847.6,2846.7,0.354]
[1763970221238,0.93214437,2847.6,2846.8,3.512757]
[1763970221443,0.93214437,2847.6,2846.8,3.617657]
[1763970221638,0.93214437,2847.6,2846.9,0.1049]
[1763970221961,0.93214437,2847.6,2847.4,0.1049]
[1763970222138,1.24285916,2847.8,2847.4,0.1049]
[1763970222339,1.24285916,2847.8,2847.7,3.617657]
[1763970222563,1.24285916,2847.8,2847.7,3.722557]
[1763970222766,1.98744792,2848.7,2847.8,0.3722557]
[1763970222966,4.35000709,2849.1,2848.7,3.512757]
[1763970223130,4.35000709,2849.1,2848.6,3.512757]
[1763970223540,4.35000709,2849.1,2848.9,3.512757]
[1763970224684,0.1841,2849.9,2848.9,3.512757]
[1763970224882,0.1841,2849.9,2848.8,3.512757]
[1763970225756,0.1841,2849.9,2848.9,3.512757]
[1763970225947,0.1912,2849.9,2848.8,3.512757]
[1763970226153,0.6448,2849.9,2848.8,3.512757]
[1763970226751,0.405504,2850.6,2848.8,3.512757]
[1763970226952,0.4536,2850.5,2848.8,3.512757]
[1763970227168,0.002,2849.1,2848.8,3.512757]
[1763970228086,0.002,2849.1,2848.9,3.512757]
[1763970228384,0.002,2849.1,2849.0,3.512757]
[1763970229288,0.002,2849.1,2848.8,3.512757]
[1763970229585,0.002,2849.1,2848.2,0.09288]
[1763970229786,0.002,2849.1,2848.9,3.512757]
[1763970230375,0.002,2849.1,2848.8,0.4536]
[1763970230982,0.1912,2848.9,2848.8,0.4536]
[1763970231487,0.002,2849.1,2848.8,0.4536]
[1763970231681,0.1912,2848.9,2848.0,0.225]
[1763970231883,0.4556,2849.1,2848.0,0.225]
[1763970232081,0.1912,2848.9,2848.2,0.4536]
[1763970232277,0.04387812,2848.8,2847.4,0.225]
[1763970232589,0.1912,2848.9,2847.8,0.09288]
[1763970233092,0.1912,2848.9,2847.9,0.4536]
[1763970233661,0.6448,2848.9,2847.9,0.4536]
[1763970234090,0.4536,2848.8,2847.9,0.4536]
[1763970235098,0.4536,2848.8,2847.2,0.31788]
[1763970235395,0.4536,2848.8,2847.4,0.4536]
[1763970235578,0.4536,2848.8,2847.5,0.01736844]
[1763970236168,0.4536,2848.8,2847.4,0.4536]
[1763970236484,0.4536,2848.8,2847.5,0.01737149]
[1763970237407,0.4536,2848.8,2847.8,0.09288]
[1763970237566,0.4536,2848.8,2847.4,0.4536]
[1763970237567,0.4536,2848.8,2847.4,0.54648]
[1763970237968,0.4536,2848.8,2847.6,0.09288]
[1763970238165,0.4536,2848.8,2847.4,0.4536]
[1763970238382,0.4536,2848.8,2847.5,0.01736844]
[1763970238662,0.4536,2848.8,2847.4,0.4536]
[1763970239193,0.4536,2848.8,2847.5,0.42287244]
[1763970239394,0.4556,2849.1,2847.8,0.09288]
[1763970239594,0.002,2849.1,2848.1,0.09288]
[1763970239800,0.002,2849.1,2848.2,0.0173518]
[1763970240595,0.002,2849.1,2848.2,0.4228558]
[1763970240773,0.002,2849.1,2848.3,0.09288]
[1763970240979,0.002,2849.1,2848.6,0.09288]
[1763970241284,0.002,2849.1,2848.7,0.405504]
[1763970241500,0.002,2849.1,2848.6,0.33522194]
[1763970242115,0.002,2849.1,2848.8,0.09288]
[1763970242567,0.002,2849.1,2849.0,0.09288]
[1763970242763,0.002,2849.1,2849.0,0.498384]
[1763970243318,0.002,2849.4,2849.1,0.405504]
[1763970243502,0.002,2849.4,2849.3,7.00711893]
[1763970243868,0.002,2849.4,2848.8,0.76232949]
[1763970244067,0.002,2849.4,2849.1,0.09288]
[1763970244983,0.002,2849.4,2848.6,0.001]
[1763970245183,0.4556,2849.4,2848.6,0.001]
[1763970245413,0.002,2849.4,2848.6,0.001]
[1763970246009,0.002,2849.4,2848.6,0.01833948]
[1763970246306,0.4556,2849.4,2848.6,0.001]
[1763970249510,0.4556,2849.4,2848.6,0.01833948]
[1763970249805,0.002,2849.4,2848.6,0.01833948]
[1763970250207,0.002,2849.4,2849.1,0.09288]
[1763970250384,0.002,2849.4,2849.2,0.01732964]
[1763970250595,0.002,2849.4,2849.0,0.225]
[1763970250769,0.002,2849.4,2849.0,0.31788]
[1763970250974,0.002,2849.4,2849.3,0.09288]
[1763970251399,0.002,2849.4,2848.9,0.31788]
[1763970251600,0.002,2849.4,2848.9,0.52056104]
[1763970251906,0.002,2849.4,2848.9,0.74556104]
[1763970253681,0.002,2849.4,2848.9,0.52056104]
[1763970253896,0.002,2849.4,2848.8,0.90699264]
[1763970253897,0.002,2849.4,2848.8,1.13199264]
[1763970254102,0.4682,2849.4,2848.7,1.13199264]
[1763970254637,0.002,2849.4,2848.7,1.13199264]
[1763970254803,0.002,2849.4,2848.9,0.09288]
[1763970255309,0.002,2849.4,2848.6,3.45844174]
[1763970255510,0.4682,2849.4,2848.6,0.001]
[1763970256039,0.32765404,2849.3,2848.6,0.001]
[1763970256240,0.32765404,2849.2,2848.6,0.001]
[1763970256540,0.4682,2849.4,2848.6,0.001]
[1763970256721,0.32767338,2849.3,2848.6,0.001]
[1763970257034,0.32767338,2849.2,2848.6,0.001]
[1763970257237,0.4682,2849.4,2848.6,0.001]
[1763970257560,0.79388113,2849.3,2848.6,0.001]
[1763970257738,0.32768113,2849.2,2848.6,0.001]
[1763970257947,0.6467,2848.7,2848.6,0.001]
[1763970258240,0.97438113,2848.7,2848.6,0.001]
[1763970258429,1.44058113,2848.7,2848.6,0.001]
[1763970261819,0.97438113,2848.7,2848.6,0.001]
[1763970262333,0.32768113,2848.7,2848.6,0.001]
[1763970263262,0.32767038,2848.7,2848.6,0.001]
[1763970263671,0.77877038,2848.7,2848.6,0.001]
[1763970263969,0.3276704,2848.7,2848.6,0.001]
[1763970264375,0.7787704,2848.7,2848.6,0.001]
[1763970264528,1.2449704,2848.7,2848.6,0.001]
[1763970266230,0.9173,2848.7,2848.6,0.001]
[1763970266426,1.24519111,2848.7,2848.6,0.001]
[1763970269731,0.77899111,2848.7,2848.6,0.001]
[1763970269933,0.1956,2849.0,2848.6,0.001]
[1763970270131,0.32802812,2848.9,2848.6,0.001]
[1763970270344,0.002,2849.4,2848.6,0.001]
[1763970270670,0.32804579,2849.3,2848.6,0.001]
[1763970270855,0.6467,2848.7,2848.6,0.001]
[1763970271055,0.4662,2849.3,2848.6,0.001]
[1763970271271,0.32804251,2849.2,2848.6,0.001]
[1763970271442,0.32804251,2849.1,2848.6,0.001]
[1763970271641,0.4662,2849.3,2848.6,0.001]
[1763970271642,0.6467,2848.7,2848.6,0.001]
[1763970271865,1.1129,2848.7,2848.6,0.001]
[1763970272069,1.44096985,2848.7,2848.6,0.001]
[1763970273534,1.84647385,2848.7,2848.6,0.001]
[1763970273736,2.03112124,2848.7,2848.6,0.001]
[1763970273944,1.62561724,2848.7,2848.6,0.001]
[1763970274583,2.03112124,2848.7,2848.6,0.001]
[1763970275177,1.62561724,2848.7,2848.6,0.001]
[1763970276775,1.65151724,2848.7,2848.6,0.001]
[1763970278181,0.1956,2848.7,2848.6,0.001]
[1763970278345,0.4921,2849.3,2848.6,0.001]
[1763970279670,0.002,2849.1,2848.6,0.001]
[1763970280979,0.4941,2849.1,2848.6,0.001]
[1763970281354,0.002,2849.1,2848.6,0.001]
[1763970282258,0.4941,2849.1,2848.6,0.001]
[1763970286167,0.6542,2848.7,2848.6,0.001]
[1763970286660,1.1187,2848.7,2848.6,0.001]
[1763970287263,1.4475211,2848.7,2848.6,0.001]
[1763970287459,0.4735,2848.7,2848.6,0.001]
[1763970287659,0.938,2848.7,2848.6,0.001]
[1763970288799,1.26681124,2848.7,2848.6,0.001]
[1763970291698,0.938,2848.7,2848.6,0.001]
[1763970292372,1.26679572,2848.7,2848.6,0.001]
[1763970299309,0.4735,2848.7,2848.6,0.001]
[1763970300024,0.938,2848.7,2848.6,0.001]
[1763970300320,1.26678821,2848.7,2848.6,0.001]
[1763970300520,3.377718,2848.6,2848.5,0.001]
[1763970300682,0.4735,2848.5,2848.3,0.001]
[1763970300878,0.4735,2848.5,2848.1,0.001]
[1763970300879,0.90699264,2848.3,2848.1,0.001]
[1763970301083,0.80228821,2848.2,2846.6,0.0056]
[1763970301303,0.80228821,2848.1,2846.6,0.0056]
[1763970301684,1.26678821,2848.1,2846.6,0.0056]
[1763970301887,1.26678821,2848.1,2847.3,0.0056]
[1763970301888,0.4735,2848.1,2847.3,0.0056]
[1763970302083,0.4645,2848.7,2848.0,0.0066]
[1763970302325,0.32862747,2848.6,2848.0,0.001]
[1763970302683,0.04388274,2848.5,2848.0,0.001]
[1763970302899,0.32859338,2848.5,2848.0,0.001]
[1763970303227,0.32859338,2848.8,2848.4,0.0056]
[1763970303393,0.32859338,2848.9,2848.4,0.0056]
[1763970303592,0.002,2849.1,2848.4,0.0112]
[1763970305314,0.002,2849.1,2848.4,0.0056]
[1763970306035,0.4665,2849.1,2848.0,0.001]
[1763970306244,0.04387504,2849.0,2848.1,0.0056]
[1763970306426,0.002,2849.1,2848.1,0.0056]
[1763970307412,0.495,2849.1,2848.1,0.0056]
[1763970309838,0.002,2849.1,2848.1,0.0056]
[1763970310028,0.495,2849.1,2848.1,0.0056]
[1763970310941,0.495,2849.1,2848.2,0.0173518]
[1763970311131,0.495,2849.1,2848.1,0.0056]
[1763970311332,0.495,2849.1,2848.2,0.0056]
[1763970311843,0.495,2849.1,2848.0,0.001]
[1763970312246,0.002,2849.1,2848.0,0.09948]
[1763970312449,0.002,2849.1,2849.0,0.0056]
[1763970315424,0.002,2849.1,2849.0,0.0112]
[1763970315936,0.002,2849.1,2849.0,0.10408]
[1763970316385,0.002,2849.1,2849.0,0.0056]
[1763970316664,0.4708,2849.1,2848.0,0.09388]
[1763970316826,0.4708,2849.1,2848.2,0.0056]
[1763970317027,0.002,2849.1,2848.2,0.0056]
[1763970317247,0.002,2849.1,2848.3,0.09288]
[1763970317625,0.002,2849.1,2848.3,0.09848]
[1763970317856,0.002,2849.1,2848.4,0.02294812]
[1763970318219,0.002,2849.1,2849.0,0.0056]
[1763970318658,0.002,2849.1,2849.0,0.0112]
[1763970318823,0.002,2849.1,2849.0,0.0056]
[1763970319564,0.002,2849.1,2849.0,0.0112]
[1763970319763,0.002,2849.1,2849.0,0.0056]
[1763970320258,0.002,2849.1,2849.0,0.0112]
[1763970321528,0.002,2849.1,2849.0,0.10408]
[1763970321842,0.002,2849.1,2849.0,0.02853581]
[1763970322043,0.002,2849.1,2849.0,0.0112]
[1763970322247,0.002,2849.1,2849.0,0.02853581]
[1763970323047,0.002,2849.1,2849.0,0.12141581]
[1763970323256,0.002,2849.1,2849.0,0.10408]
[1763970324568,0.002,2849.1,2849.0,0.32808]
[1763970324730,0.002,2849.1,2849.0,1.3669657]
[1763970325638,0.002,2849.1,2849.0,0.32808]
[1763970327461,0.002,2849.1,2849.0,3.076173]
[1763970327861,0.002,2849.1,2849.0,0.32808]
[1763970330055,0.002,2849.1,2849.0,0.0056]
[1763970330372,0.002,2849.1,2849.0,0.01733581]
[1763970330684,0.4708,2849.1,2848.5,0.224]
[1763970330986,0.4708,2849.1,2848.0,0.001]
[1763970330987,0.6466,2848.6,2848.0,0.001]
[1763970331879,1.1396,2848.6,2848.0,0.001]
[1763970332081,0.4688,2848.1,2848.0,0.001]
[1763970332443,0.9618,2848.1,2848.0,0.001]
[1763970334883,0.1778,2848.6,2848.0,0.001]
[1763970334884,0.1778,2848.6,2848.0,0.0066]
[1763970335255,0.4688,2848.1,2848.0,0.001]
[1763970335887,0.9618,2848.1,2848.0,0.001]
[1763970344394,7.633648,2848.1,2847.8,0.001]
[1763970344557,4.31675864,2847.9,2847.8,0.001]
[1763970344957,4.80435864,2847.9,2847.8,0.001]
[1763970345165,4.49535864,2847.9,2847.8,0.001]
[1763970345650,4.90086264,2847.9,2847.8,0.001]
[1763970345852,4.90086264,2847.9,2845.5,0.09288]
[1763970345853,0.405504,2847.3,2845.5,0.09288]
[1763970346090,0.9817399,2847.2,2845.6,0.02302516]
[1763970346286,0.9817399,2847.2,2846.1,0.09288]
[1763970346287,0.4876,2847.2,2846.1,0.09288]
[1763970346488,0.4876,2847.1,2846.1,0.09288]
[1763970346692,0.4876,2847.1,2846.1,0.09848]
[1763970347262,0.1828,2847.9,2846.2,0.02301347]
[1763970347467,0.4876,2847.4,2846.4,0.09288]
[1763970348179,0.4876,2847.4,2846.3,0.0056]
[1763970348386,0.4876,2847.4,2846.2,0.09288]
[1763970348681,0.4876,2847.4,2846.0,0.0056]
[1763970349198,0.4876,2847.4,2846.1,0.09288]
[1763970349394,0.4876,2847.4,2846.4,0.001]
[1763970352701,0.4782,2846.5,2846.4,0.001]
[1763970353073,0.9658,2846.5,2846.4,0.001]
[1763970354311,0.893104,2847.3,2846.4,0.001]
[1763970354497,0.4876,2847.3,2846.4,0.001]
[1763970354709,0.6646,2846.5,2846.4,0.001]
[1763970355092,1.1522,2846.5,2846.4,0.001]
[1763970355288,0.90699264,2847.4,2846.4,0.001]
[1763970355289,0.1864,2846.7,2846.4,0.001]
[1763970355681,0.4876,2846.6,2846.4,0.001]
[1763970355915,0.4782,2846.5,2846.4,0.001]
[1763970356210,0.1864,2846.7,2846.4,0.001]
[1763970357128,0.4782,2846.5,2846.4,0.001]
[1763970357613,0.9658,2846.5,2846.4,0.001]
[1763970361327,1.29348756,2846.5,2846.4,0.001]
[1763970364495,1.29344301,2846.5,2846.4,0.001]
[1763970365002,1.33735658,2846.5,2846.4,0.001]
[1763970365206,1.29344301,2846.5,2846.4,0.001]
[1763970365719,1.33735658,2846.5,2846.4,0.001]
[1763970366331,1.29344301,2846.5,2846.4,0.001]
[1763970367146,1.33735658,2846.5,2846.4,0.001]
[1763970367289,1.74286058,2846.5,2846.4,0.001]
[1763970367494,1.89187307,2846.5,2846.4,0.001]
[1763970368540,1.48636907,2846.5,2846.4,0.001]
[1763970369920,0.99876907,2846.5,2846.4,0.001]
[1763970370133,1.46506907,2846.5,2846.4,0.001]
[1763970371099,1.50898264,2846.5,2846.4,0.001]
[1763970371295,1.50898264,2846.5,2846.1,0.001]
[1763970371296,1.31249664,2846.3,2846.1,0.001]
[1763970371635,1.66522967,2846.2,2846.1,0.001]
[1763970371835,1.28864301,2846.2,2846.1,0.001]
[1763970372819,1.69414701,2846.2,2846.1,0.001]
[1763970374845,5.60213965,2846.2,2846.1,0.001]
[1763970375729,8.91017765,2846.2,2846.1,0.001]
[1763970375914,6.50072965,2846.2,2846.1,0.001]
[1763970376233,7.38196062,2846.2,2846.1,0.001]
[1763970376617,3.25121262,2846.2,2846.1,0.001]
[1763970376812,6.20388765,2846.2,2846.1,0.001]
[1763970377061,2.60113965,2846.2,2846.1,0.001]
[1763970377262,4.64223665,2846.2,2846.1,0.001]
[1763970377790,2.60113965,2846.2,2846.1,0.001]
[1763970378164,5.19113565,2846.2,2846.1,0.001]
[1763970378463,5.64499621,2846.2,2846.1,0.001]
[1763970378820,5.68891441,2846.2,2846.1,0.001]
[1763970379227,5.64499621,2846.2,2846.1,0.001]
[1763970379759,3.12025321,2846.2,2846.1,0.001]
[1763970380062,5.36120921,2846.2,2846.1,0.001]
[1763970380566,3.12025321,2846.2,2846.1,0.001]
[1763970381129,9.39830721,2846.2,2846.1,0.001]
[1763970381433,7.39386021,2846.2,2846.1,0.001]
[1763970381644,3.12025321,2846.2,2846.1,0.001]
[1763970381881,7.36264321,2846.2,2846.1,0.001]
[1763970382636,8.67890103,2846.2,2846.1,0.001]
[1763970382873,9.08557091,2846.2,2846.1,0.001]
[1763970383257,8.26779221,2846.2,2846.1,0.001]
[1763970383663,8.35580121,2846.2,2846.1,0.001]
[1763970384178,7.75380121,2846.2,2846.1,0.001]
[1763970384350,5.60453721,2846.2,2846.1,0.001]
[1763970384749,3.12025321,2846.2,2846.1,0.001]
[1763970384948,5.24485221,2846.2,2846.1,0.001]
[1763970385459,3.12025321,2846.2,2846.1,0.001]
[1763970386182,7.62109021,2846.2,2846.1,0.001]
[1763970386472,7.33239021,2846.2,2846.1,0.001]
[1763970387447,18.10039893,2846.2,2846.1,0.001]
[1763970387649,17.54027993,2846.2,2846.1,0.001]
[1763970388238,16.77439993,2846.2,2846.1,0.001]
[1763970388444,15.74397493,2846.2,2846.1,0.001]
[1763970389064,15.74397493,2846.2,2845.0,0.1]
[1763970389065,2.27349664,2846.1,2845.0,0.1]
[1763970389388,0.191,2845.9,2845.1,0.0076]
[1763970389592,0.32764301,2845.8,2845.1,0.0076]
[1763970389798,3.35319413,2846.1,2845.1,0.0076]
[1763970389799,0.32764301,2845.7,2845.1,0.0076]
[1763970390004,0.32764301,2845.6,2845.1,0.0076]
[1763970390167,0.4663,2846.3,2845.1,0.0076]
[1763970390168,0.32764301,2846.2,2845.1,0.0076]
[1763970390373,0.32764301,2846.1,2845.5,0.0076]
[1763970390568,0.32764301,2846.0,2845.5,0.0076]
[1763970390772,0.32764301,2845.9,2845.5,0.0076]
[1763970391086,0.32764301,2846.2,2845.5,0.0076]
[1763970391284,0.32764301,2846.1,2845.5,0.0076]
[1763970391489,0.32764301,2846.0,2845.5,0.0076]
[1763970391799,0.32764301,2845.9,2845.5,0.0076]
[1763970391996,0.32764301,2846.0,2845.5,0.0076]
[1763970392202,0.32764301,2845.9,2845.5,0.0076]
[1763970392406,0.32764301,2846.0,2845.1,0.0076]
[1763970392611,0.32764301,2845.9,2845.1,0.0076]
[1763970392759,0.32764301,2846.0,2845.1,0.0076]
[1763970392959,0.32764301,2845.9,2845.1,0.0076]
[1763970393175,0.32764301,2845.8,2845.1,0.0076]
[1763970393459,0.191,2845.9,2845.1,0.0076]
[1763970393691,0.32764301,2845.9,2845.1,0.0076]
[1763970393998,0.405504,2846.2,2845.1,0.0076]
[1763970394206,0.32764301,2846.3,2845.1,0.0076]
[1763970394207,0.32764301,2846.1,2845.1,0.0076]
[1763970394416,0.32764301,2846.0,2845.1,0.0076]
[1763970394708,0.32764301,2845.9,2845.1,0.0076]
[1763970395005,0.32764301,2846.2,2845.1,0.0076]
[1763970395205,0.32764301,2846.1,2845.8,0.0076]
[1763970395509,0.32764301,2846.0,2845.8,0.0076]
[1763970395664,0.32764301,2845.9,2845.8,0.0076]
[1763970395861,0.405504,2846.2,2845.8,0.0076]
[1763970396060,0.4947,2845.9,2845.0,0.1076]